[Event "28th Hit Open-A 2024"]
[Site "Nova Gorica"]
[Date "2024.02.01"]
[Round "8.11"]
[White "Kozlovic, Jernej"]
[Black "Ashwath, R.."]
[Result "1/2-1/2"]
[ECO "B31"]
[WhiteElo "2174"]
[BlackElo "2284"]
[Annotator "ChessBase"]
[PlyCount "162"]
[EventDate "2024.01.22"]
[EventType "swiss"]
[EventCountry "SLO"]
[SourceTitle "playchess.com"]
[Source "ChessBase"]
[SourceQuality "1"]
[TimeControl "5400+30"]

1. e4 {[%emt 0:00:03]} c5 {[%emt 0:06:22]} 2. Nf3 {[%emt 0:00:12]} Nc6 {[%emt 0:00:16]} 3. Bb5 {[%emt 0:01:14]} g6 {[%emt 0:00:17]} 4. O-O {[%emt 0:00:51]} Bg7 {[%emt 0:00:27]} 5. Re1 {[%emt 0:00:55]} e5 {[%emt 0:00:17]} 6. Bxc6 {[%emt 0:00:48]} dxc6 {[%emt 0:00:16]} 7. d3 {[%emt 0:00:42]} Qe7 {[%emt 0:00:17]} 8. a3 {[%emt 0:02:05]} Nh6 {[%emt 0:06:24]} 9. Nbd2 {[%emt 0:11:04]} Be6 {[%emt 0:10:28]} 10. b4 {[%emt 0:12:55]} O-O {[%emt 0:06:29]} 11. bxc5 {[%emt 0:03:26]} Qxc5 {[%emt 0:01:34]} 12. Rb1 {[%emt 0:16:24]} b6 {[%emt 0:09:38]} 13. h3 {[%emt 0:09:19]} f6 {[%emt 0:06:14]} 14. Nb3 {[%emt 0:04:12]} Qd6 {[%emt 0:03:58]} 15. c3 {[%emt 0:03:36]} Nf7 {[%emt 0:09:10]} 16. d4 {[%emt 0:02:27]} f5 {[%emt 0:02:55]} 17. exf5 {[%emt 0:05:35]} Bxf5 {[%emt 0:07:38]} 18. Ra1 {[%emt 0:00:18]} Rad8 {[%emt 0:01:58]} 19. a4 {[%emt 0:06:40]} exd4 {[%emt 0:07:56]} 20. cxd4 {[%emt 0:00:16]} Rfe8 {[%emt 0:04:25]} 21. Rxe8+ {[%emt 0:02:36]} Rxe8 {[%emt 0:00:38]} 22. Be3 {[%emt 0:02:07]} Qd5 {[%emt 0:02:18]} 23. a5 {[%emt 0:01:15]} Nd6 {[%emt 0:01:25]} 24. axb6 {[%emt 0:00:43]} axb6 {[%emt 0:00:04]} 25. Nbd2 {[%emt 0:01:06]} Nb5 {[%emt 0:02:34]} 26. Qa4 {[%emt 0:05:20]} Rd8 {[%emt 0:03:17]} 27. Nc4 {[%emt 0:03:37]} Nxd4 {[%emt 0:03:54]} 28. Nxd4 {[%emt 0:00:18]} Bxd4 {[%emt 0:02:20]} 29. Nxb6 {[%emt 0:00:06]} Bxb6 {[%emt 0:00:42]} 30. Bxb6 {[%emt 0:01:43]} Re8 {[%emt 0:00:40]} 31. Rd1 {[%emt 0:00:42]} Qe6 {[%emt 0:00:31]} 32. Qd4 {[%emt 0:01:54]} Qd5 {[%emt 0:00:33]} 33. Qxd5+ {[%emt 0:00:49]} cxd5 {[%emt 0:00:02]} 34. Rxd5 {[%emt 0:00:07]} h5 {[%emt 0:00:27]} 35. Ra5 {[%emt 0:00:30]} Kf7 {[%emt 0:00:07]} 36. Bc5 {[%emt 0:00:43]} Rd8 {[%emt 0:00:35]} 37. Kh2 {[%emt 0:00:22]} Rd3 {[%emt 0:00:26]} 38. Ra4 {[%emt 0:00:16]} Be6 {[%emt 0:01:05]} 39. Bd4 {[%emt 0:00:16]} Bf5 {[%emt 0:00:33]} 40. Ra7+ {[%emt 0:00:19]} Ke8 {[%emt 0:00:31]} 41. Ra8+ {[%emt 0:00:10]} Kf7 {[%emt 0:00:09]} 42. Be3 {[%emt 0:00:07]} Rc3 {[%emt 0:00:49]} 43. Kg3 {[%emt 0:00:28]} Rc4 {[%emt 0:00:07]} 44. Ra7+ {[%emt 0:00:15]} Kf6 {[%emt 0:00:32]} 45. Ra6+ {[%emt 0:00:14]} Kf7 {[%emt 0:00:16]} 46. Rd6 {[%emt 0:01:13]} Ke7 {[%emt 0:01:06]} 47. Rd1 {[%emt 0:00:16]} Kf7 {[%emt 0:00:26]} 48. Bd4 {[%emt 0:00:46]} g5 {[%emt 0:00:32]} 49. Be3 {[%emt 0:00:51]} h4+ {[%emt 0:00:11]} 50. Kh2 {[%emt 0:00:09]} g4 {[%emt 0:00:22]} 51. hxg4 {[%emt 0:00:11]} Rxg4 {[%emt 0:00:15]} 52. Ra1 {[%emt 0:00:40]} h3 {[%emt 0:01:14]} 53. g3 {[%emt 0:00:19]} Re4 {[%emt 0:00:30]} 54. Ra6 {[%emt 0:00:47]} Rb4 {[%emt 0:00:38]} 55. Rh6 {[%emt 0:01:44]} Kg7 {[%emt 0:00:27]} 56. Rh5 {[%emt 0:00:16]} Kg6 {[%emt 0:00:18]} 57. Rg5+ {[%emt 0:00:30]} Kf6 {[%emt 0:00:02]} 58. Rg8 {[%emt 0:01:16]} Kf7 {[%emt 0:00:12]} 59. Rh8 {[%emt 0:00:38]} Kg7 {[%emt 0:00:19]} 60. Rh5 {[%emt 0:00:03]} Kg6 {[%emt 0:00:03]} 61. Rh6+ {[%emt 0:00:04]} Kg7 {[%emt 0:00:24]} 62. Rc6 {[%emt 0:00:31]} Bg4 {[%emt 0:01:06]} 63. Bd2 {[%emt 0:01:22]} Ra4 {[%emt 0:01:41]} 64. Bc3+ {[%emt 0:00:30]} Kh7 {[%emt 0:00:23]} 65. Rf6 {[%emt 0:00:13]} Ra3 {[%emt 0:00:28]} 66. Rf4 {[%emt 0:00:43]} Be6 {[%emt 0:00:24]} 67. Bb4 {[%emt 0:00:49]} Rb3 {[%emt 0:00:34]} 68. Bc5 {[%emt 0:00:29]} Kg6 {[%emt 0:00:34]} 69. Be3 {[%emt 0:00:40]} Rb1 {[%emt 0:00:29]} 70. Rd4 {[%emt 0:00:47]} Kh5 {[%emt 0:00:43]} 71. Rh4+ {[%emt 0:00:31]} Kg6 {[%emt 0:00:02]} 72. Rh6+ {[%emt 0:00:31]} Kf7 {[%emt 0:00:08]} 73. Rh5 {[%emt 0:00:21]} Bc8 {[%emt 0:00:26]} 74. Rc5 {[%emt 0:00:18]} Be6 {[%emt 0:00:21]} 75. Rg5 {[%emt 0:00:27]} Kf6 {[%emt 0:01:20]} 76. g4 {[%emt 0:00:33]} Re1 {[%emt 0:00:22]} 77. Kxh3 {[%emt 0:00:56]} Rxe3+ {[%emt 0:00:09]} 78. fxe3 {[%emt 0:00:03]} Kxg5 {[%emt 0:00:02]} 79. Kg3 {[%emt 0:00:07]} Bxg4 {[%emt 0:00:03]} 80. e4 {[%emt 0:00:04]} Bf5 {[%emt 0:00:10]} 81. exf5 {[%emt 0:00:04]} Kxf5 {[%emt 0:00:01]} 1/2-1/2

[Event "28th Hit Open-A 2024"]
[Site "Nova Gorica"]
[Date "2024.02.01"]
[Round "8.12"]
[White "Lavrencic, Matic"]
[Black "Bazilius, Augustinas"]
[Result "1-0"]
[ECO "B62"]
[WhiteElo "2299"]
[BlackElo "2030"]
[Annotator "ChessBase"]
[PlyCount "73"]
[EventDate "2024.01.22"]
[EventType "swiss"]
[EventCountry "SLO"]
[SourceTitle "playchess.com"]
[Source "ChessBase"]
[SourceQuality "1"]
[TimeControl "5400+30"]

1. e4 {[%emt 0:00:03]} c5 {[%emt 0:03:52]} 2. Nf3 {[%emt 0:00:33]} d6 {[%emt 0:00:18]} 3. d4 {[%emt 0:00:57]} cxd4 {[%emt 0:00:14]} 4. Nxd4 {[%emt 0:00:03]} Nf6 {[%emt 0:00:16]} 5. Nc3 {[%emt 0:00:06]} Nc6 {[%emt 0:00:09]} 6. Bg5 {[%emt 0:02:14]} e6 {[%emt 0:00:04]} 7. Qd3 {[%emt 0:00:52]} a6 {[%emt 0:00:15]} 8. Nxc6 {[%emt 0:00:32]} bxc6 {[%emt 0:00:09]} 9. O-O-O {[%emt 0:00:07]} Be7 {[%emt 0:00:37]} 10. Qg3 {[%emt 0:02:28]} e5 {[%emt 0:25:09]} 11. Be2 {[%emt 0:09:24]} Rb8 {[%emt 0:07:55]} 12. f4 {[%emt 0:02:39]} Qb6 {[%emt 0:11:01]} 13. b3 {[%emt 0:00:46]} h6 {[%emt 0:01:53]} 14. Bxf6 {[%emt 0:08:04]} Bxf6 {[%emt 0:01:55]} 15. f5 {[%emt 0:00:11]} Qc5 {[%emt 0:06:38]} 16. h4 {[%emt 0:01:25]} O-O {[%emt 0:15:00]} 17. Kb1 {[%emt 0:09:27]} Qa3 {[%emt 0:05:27]} 18. Qf3 {[%emt 0:07:58]} d5 {[%emt 0:00:08]} 19. Ka1 {[%emt 0:00:28]} Qc5 {[%emt 0:08:16]} 20. g4 {[%emt 0:08:07]} Rb4 {[%emt 0:00:29]} 21. Kb2 {[%emt 0:16:43]} g5 {[%emt 0:05:49]} 22. hxg5 {[%emt 0:02:05]} Bxg5 {[%emt 0:00:27]} 23. a3 {[%emt 0:03:49]} Rd4 {[%emt 0:00:29]} 24. Bd3 {[%emt 0:00:34]} Rd8 {[%emt 0:00:20]} 25. Rh5 {[%emt 0:11:13]} Be7 {[%emt 0:02:41]} 26. Ra1 {[%emt 0:00:33]} dxe4 {[%emt 0:01:13]} 27. Bxe4 {[%emt 0:07:23]} Bg5 {[%emt 0:01:11]} 28. Rah1 {[%emt 0:03:30]} Rd2 {[%emt 0:00:31]} 29. Rxg5+ {[%emt 0:00:48]} hxg5 {[%emt 0:00:01]} 30. f6 {[%emt 0:00:21]} Qf2 {[%emt 0:00:01]} 31. Qh3 {[%emt 0:01:46]} Qh4 {[%emt 0:01:27]} 32. Qe3 {[%emt 0:00:28]} Qxg4 {[%emt 0:00:49]} 33. Bh7+ {[%emt 0:00:28]} Kf8 {[%emt 0:00:01]} 34. Bf5 {[%emt 0:00:22]} Rxc2+ {[%emt 0:00:42]} 35. Bxc2 {[%emt 0:00:09]} Kg8 {[%emt 0:00:15]} 36. Bh7+ {[%emt 0:00:13]} Kf8 {[%emt 0:00:01]} 37. Qc5+ {[%emt 0:00:22]} 1-0

[Event "28th Hit Open-A 2024"]
[Site "Nova Gorica"]
[Date "2024.02.01"]
[Round "8.13"]
[White "Kejzar, Petra"]
[Black "Stevanic, David"]
[Result "0-1"]
[ECO "E97"]
[WhiteElo "2025"]
[BlackElo "2294"]
[Annotator "ChessBase"]
[PlyCount "140"]
[EventDate "2024.01.22"]
[EventType "swiss"]
[EventCountry "SLO"]
[SourceTitle "playchess.com"]
[Source "ChessBase"]
[SourceQuality "1"]
[TimeControl "5400+30"]

1. d4 {[%emt 0:00:03]} Nf6 {[%emt 0:00:06]} 2. c4 {[%emt 0:00:05]} g6 {[%emt 0:00:14]} 3. Nc3 {[%emt 0:00:59]} Bg7 {[%emt 0:00:08]} 4. e4 {[%emt 0:00:07]} d6 {[%emt 0:00:05]} 5. Nf3 {[%emt 0:00:08]} O-O {[%emt 0:00:14]} 6. Be2 {[%emt 0:00:16]} e5 {[%emt 0:00:56]} 7. O-O {[%emt 0:00:46]} Nc6 {[%emt 0:00:12]} 8. h3 {[%emt 0:01:49]} exd4 {[%emt 0:03:43]} 9. Nxd4 {[%emt 0:01:21]} Nxe4 {[%emt 0:13:33]} 10. Nxc6 {[%emt 0:00:40]} Nxc3 {[%emt 0:01:06]} 11. Nxd8 {[%emt 0:03:26]} Nxd1 {[%emt 0:00:05]} 12. Rxd1 {[%emt 0:00:06]} Rxd8 {[%emt 0:00:06]} 13. Bf3 {[%emt 0:04:32]} Be6 {[%emt 0:10:31]} 14. Bg5 {[%emt 0:08:42]} Rf8 {[%emt 0:08:59]} 15. c5 {[%emt 0:04:38]} dxc5 {[%emt 0:11:04]} 16. Be7 {[%emt 0:00:10]} Rfe8 {[%emt 0:00:44]} 17. Bxc5 {[%emt 0:00:08]} c6 {[%emt 0:00:25]} 18. Be3 {[%emt 0:01:33]} Red8 {[%emt 0:05:44]} 19. a3 {[%emt 0:05:58]} Rxd1+ {[%emt 0:09:45]} 20. Rxd1 {[%emt 0:00:10]} Bxb2 {[%emt 0:00:20]} 21. Rb1 {[%emt 0:00:14]} Bxa3 {[%emt 0:00:06]} 22. Rxb7 {[%emt 0:00:07]} c5 {[%emt 0:05:28]} 23. Rc7 {[%emt 0:01:16]} Rc8 {[%emt 0:00:15]} 24. Rxa7 {[%emt 0:00:23]} Bb2 {[%emt 0:00:53]} 25. Bb7 {[%emt 0:16:48]} Rc7 {[%emt 0:07:47]} 26. Bf4 {[%emt 0:00:51]} Rd7 {[%emt 0:00:57]} 27. Bh6 {[%emt 0:00:29]} f5 {[%emt 0:04:29]} 28. Ra8+ {[%emt 0:02:35]} Kf7 {[%emt 0:00:15]} 29. Bc6 {[%emt 0:01:41]} Rc7 {[%emt 0:04:53]} 30. Rf8+ {[%emt 0:11:12]} Ke7 {[%emt 0:00:10]} 31. Re8+ {[%emt 0:00:10]} Kf6 {[%emt 0:01:55]} 32. Ba4 {[%emt 0:04:50]} Bf7 {[%emt 0:03:50]} 33. Rb8 {[%emt 0:04:44]} Bd4 {[%emt 0:01:52]} 34. Rb6+ {[%emt 0:02:10]} Ke5 {[%emt 0:01:10]} 35. g3 {[%emt 0:10:42]} Kd5 {[%emt 0:02:20]} 36. Bf4 {[%emt 0:01:01]} Ra7 {[%emt 0:01:34]} 37. Bb5 {[%emt 0:04:52]} Ra1+ {[%emt 0:00:36]} 38. Kg2 {[%emt 0:00:01]} Ra2 {[%emt 0:01:00]} 39. Rd6+ {[%emt 0:00:50]} Ke4 {[%emt 0:00:08]} 40. Bc6+ {[%emt 0:01:32]} Kd3 {[%emt 0:00:02]} 41. Be3 {[%emt 0:01:27]} Kc3 {[%emt 0:01:10]} 42. Bxd4+ {[%emt 0:00:59]} cxd4 {[%emt 0:00:02]} 43. Bf3 {[%emt 0:01:39]} Bc4 {[%emt 0:01:12]} 44. Rc6 {[%emt 0:01:14]} d3 {[%emt 0:01:08]} 45. g4 {[%emt 0:00:46]} Ra6 {[%emt 0:00:58]} 46. Rc7 {[%emt 0:00:22]} Rd6 {[%emt 0:00:36]} 47. gxf5 {[%emt 0:00:59]} gxf5 {[%emt 0:00:14]} 48. Kg3 {[%emt 0:00:06]} d2 {[%emt 0:00:43]} 49. Kf4 {[%emt 0:02:46]} d1=Q {[%emt 0:00:29]} 50. Bxd1 {[%emt 0:00:06]} Rxd1 {[%emt 0:00:04]} 51. Kxf5 {[%emt 0:00:43]} Rd5+ {[%emt 0:00:53]} 52. Kg4 {[%emt 0:00:26]} h5+ {[%emt 0:00:12]} 53. Kf4 {[%emt 0:01:58]} Kd4 {[%emt 0:00:01]} 54. Rg7 {[%emt 0:00:34]} Be2 {[%emt 0:00:53]} 55. Rg1 {[%emt 0:00:52]} Rd8 {[%emt 0:00:35]} 56. Re1 {[%emt 0:00:16]} Rf8+ {[%emt 0:00:20]} 57. Kg3 {[%emt 0:00:10]} Rf3+ {[%emt 0:00:57]} 58. Kg2 {[%emt 0:00:06]} Kd3 {[%emt 0:00:02]} 59. Ra1 {[%emt 0:00:16]} Rf5 {[%emt 0:00:16]} 60. Ra3+ {[%emt 0:00:34]} Kd2 {[%emt 0:00:26]} 61. Ra2+ {[%emt 0:00:17]} Ke1 {[%emt 0:00:39]} 62. Ra1+ {[%emt 0:00:02]} Bd1 {[%emt 0:00:15]} 63. f3 {[%emt 0:01:44]} h4 {[%emt 0:01:14]} 64. Rb1 {[%emt 0:00:34]} Rg5+ {[%emt 0:00:05]} 65. Kh2 {[%emt 0:00:14]} Rg3 {[%emt 0:00:53]} 66. Rb4 {[%emt 0:01:25]} Kf2 {[%emt 0:00:25]} 67. Rd4 {[%emt 0:00:35]} Rg2+ {[%emt 0:00:53]} 68. Kh1 {[%emt 0:00:00]} Bxf3 {[%emt 0:00:14]} 69. Rd1 {[%emt 0:01:01]} Rg3+ {[%emt 0:00:22]} 70. Kh2 {[%emt 0:00:09]} Bxd1 {[%emt 0:00:07]} 0-1

[Event "28th Hit Open-A 2024"]
[Site "Nova Gorica"]
[Date "2024.02.01"]
[Round "8.14"]
[White "Furlan, Miha"]
[Black "Dorokhina, Elizaveta"]
[Result "1/2-1/2"]
[ECO "C02"]
[WhiteElo "2287"]
[BlackElo "1994"]
[Annotator "ChessBase"]
[PlyCount "74"]
[EventDate "2024.01.22"]
[EventType "swiss"]
[EventCountry "SLO"]
[SourceTitle "playchess.com"]
[Source "ChessBase"]
[SourceQuality "1"]
[TimeControl "5400+30"]

1. e4 {[%emt 0:00:03]} e6 {[%emt 0:13:32]} 2. d4 {[%emt 0:00:12]} d5 {[%emt 0:00:07]} 3. e5 {[%emt 0:00:11]} c5 {[%emt 0:00:07]} 4. c3 {[%emt 0:00:05]} Nc6 {[%emt 0:00:07]} 5. Nf3 {[%emt 0:00:06]} Bd7 {[%emt 0:00:08]} 6. Be2 {[%emt 0:00:16]} Nge7 {[%emt 0:01:01]} 7. Na3 {[%emt 0:00:21]} cxd4 {[%emt 0:00:25]} 8. cxd4 {[%emt 0:00:09]} Nf5 {[%emt 0:00:15]} 9. Nc2 {[%emt 0:00:20]} Be7 {[%emt 0:00:26]} 10. O-O {[%emt 0:04:29]} O-O {[%emt 0:02:05]} 11. Bd3 {[%emt 0:05:41]} Rc8 {[%emt 0:05:17]} 12. g4 {[%emt 0:10:54]} Nh4 {[%emt 0:01:08]} 13. Nxh4 {[%emt 0:00:21]} Bxh4 {[%emt 0:00:06]} 14. g5 {[%emt 0:15:47]} Bxg5 {[%emt 0:01:48]} 15. Qh5 {[%emt 0:00:27]} h6 {[%emt 0:01:19]} 16. f4 {[%emt 0:00:20]} Be7 {[%emt 0:11:56]} 17. Kh1 {[%emt 0:01:12]} f5 {[%emt 0:01:13]} 18. Rg1 {[%emt 0:01:00]} Kh8 {[%emt 0:03:33]} 19. Bd2 {[%emt 0:04:31]} Be8 {[%emt 0:03:32]} 20. Qh3 {[%emt 0:00:16]} Rg8 {[%emt 0:03:02]} 21. Rg3 {[%emt 0:00:22]} Bf7 {[%emt 0:03:21]} 22. Rag1 {[%emt 0:01:26]} Qf8 {[%emt 0:01:55]} 23. Bc3 {[%emt 0:02:02]} a6 {[%emt 0:02:31]} 24. Ne3 {[%emt 0:01:34]} b5 {[%emt 0:08:52]} 25. a3 {[%emt 0:00:23]} Rb8 {[%emt 0:00:26]} 26. Nxf5 {[%emt 0:08:00]} exf5 {[%emt 0:00:36]} 27. Bxf5 {[%emt 0:00:22]} g5 {[%emt 0:11:33]} 28. fxg5 {[%emt 0:02:16]} Bg6 {[%emt 0:00:06]} 29. Bxg6 {[%emt 0:11:56]} Rxg6 {[%emt 0:00:06]} 30. Rf1 {[%emt 0:00:37]} Qg7 {[%emt 0:02:54]} 31. Qg2 {[%emt 0:05:03]} Rxg5 {[%emt 0:02:48]} 32. Rxg5 {[%emt 0:00:35]} Bxg5 {[%emt 0:02:10]} 33. Qxd5 {[%emt 0:00:19]} Qb7 {[%emt 0:01:01]} 34. Rf7 {[%emt 0:05:26]} Ne7 {[%emt 0:00:33]} 35. Qxb7 {[%emt 0:00:46]} Rxb7 {[%emt 0:00:05]} 36. d5 {[%emt 0:00:11]} Kg8 {[%emt 0:04:37]} 37. e6 {[%emt 0:06:27]} Rb6 {[%emt 0:00:30]} 1/2-1/2

[Event "28th Hit Open-A 2024"]
[Site "Nova Gorica"]
[Date "2024.02.01"]
[Round "8.15"]
[White "Debevec, Blaz"]
[Black "Drazic, Sinisa"]
[Result "0-1"]
[ECO "B39"]
[WhiteElo "2077"]
[BlackElo "2270"]
[Annotator "ChessBase"]
[PlyCount "110"]
[EventDate "2024.01.22"]
[EventType "swiss"]
[EventCountry "SLO"]
[SourceTitle "playchess.com"]
[Source "ChessBase"]
[SourceQuality "1"]
[TimeControl "5400+30"]

1. e4 {[%emt 0:02:28]} c5 {[%emt 0:00:15]} 2. Nf3 {[%emt 0:00:17]} Nc6 {[%emt 0:00:16]} 3. d4 {[%emt 0:00:20]} cxd4 {[%emt 0:00:03]} 4. Nxd4 {[%emt 0:00:04]} g6 {[%emt 0:00:10]} 5. c4 {[%emt 0:00:10]} Bg7 {[%emt 0:00:01]} 6. Be3 {[%emt 0:00:10]} Nf6 {[%emt 0:00:02]} 7. Nc3 {[%emt 0:00:42]} Ng4 {[%emt 0:00:25]} 8. Qxg4 {[%emt 0:00:41]} Nxd4 {[%emt 0:00:09]} 9. Qd1 {[%emt 0:00:34]} Ne6 {[%emt 0:02:17]} 10. Qd2 {[%emt 0:02:31]} Qa5 {[%emt 0:00:07]} 11. Be2 {[%emt 0:03:15]} b6 {[%emt 0:00:26]} 12. f3 {[%emt 0:01:17]} Bb7 {[%emt 0:00:35]} 13. Rc1 {[%emt 0:00:39]} d6 {[%emt 0:00:18]} 14. b3 {[%emt 0:00:38]} g5 {[%emt 0:04:29]} 15. Nd5 {[%emt 0:02:56]} Qxd2+ {[%emt 0:00:15]} 16. Kxd2 {[%emt 0:00:08]} Kd7 {[%emt 0:00:23]} 17. h4 {[%emt 0:02:22]} h6 {[%emt 0:00:07]} 18. Rh3 {[%emt 0:02:18]} Rhg8 {[%emt 0:02:25]} 19. hxg5 {[%emt 0:02:26]} hxg5 {[%emt 0:00:02]} 20. Rh5 {[%emt 0:05:00]} Be5 {[%emt 0:01:18]} 21. Rh7 {[%emt 0:02:08]} Raf8 {[%emt 0:01:30]} 22. b4 {[%emt 0:06:12]} Nf4 {[%emt 0:01:28]} 23. Bf1 {[%emt 0:11:43]} e6 {[%emt 0:02:50]} 24. Nxf4 {[%emt 0:01:05]} gxf4 {[%emt 0:00:09]} 25. Bf2 {[%emt 0:00:42]} Rh8 {[%emt 0:04:15]} 26. Rxh8 {[%emt 0:00:55]} Rxh8 {[%emt 0:00:01]} 27. c5 {[%emt 0:01:15]} bxc5 {[%emt 0:00:10]} 28. bxc5 {[%emt 0:00:18]} d5 {[%emt 0:00:03]} 29. Rb1 {[%emt 0:07:18]} Kc7 {[%emt 0:02:58]} 30. exd5 {[%emt 0:05:35]} Bxd5 {[%emt 0:14:51]} 31. Rb4 {[%emt 0:00:53]} Bc6 {[%emt 0:02:55]} 32. Bd3 {[%emt 0:02:59]} Rh2 {[%emt 0:01:23]} 33. Bf1 {[%emt 0:00:54]} f6 {[%emt 0:02:04]} 34. a4 {[%emt 0:02:13]} Rh1 {[%emt 0:07:05]} 35. Bc4 {[%emt 0:04:58]} Kd7 {[%emt 0:00:47]} 36. Rb3 {[%emt 0:01:10]} Rh2 {[%emt 0:03:39]} 37. Bf1 {[%emt 0:01:23]} Kc7 {[%emt 0:00:25]} 38. Rb4 {[%emt 0:01:05]} Rh8 {[%emt 0:04:13]} 39. Bd3 {[%emt 0:05:09]} Rg8 {[%emt 0:03:54]} 40. Bf1 {[%emt 0:01:15]} Rd8+ {[%emt 0:00:02]} 41. Bd3 {[%emt 0:01:36]} a5 {[%emt 0:02:56]} 42. Rb6 {[%emt 0:01:08]} Bxa4 {[%emt 0:00:22]} 43. Ke2 {[%emt 0:00:28]} Bc6 {[%emt 0:01:00]} 44. Be1 {[%emt 0:01:04]} a4 {[%emt 0:12:31]} 45. Ba5 {[%emt 0:08:51]} Rg8 {[%emt 0:00:43]} 46. Ra6+ {[%emt 0:05:53]} Kd7 {[%emt 0:00:33]} 47. Ra7+ {[%emt 0:00:51]} Kc8 {[%emt 0:00:13]} 48. Be4 {[%emt 0:01:34]} Bxe4 {[%emt 0:01:54]} 49. fxe4 {[%emt 0:00:06]} Kb8 {[%emt 0:00:21]} 50. Rd7 {[%emt 0:00:59]} Rxg2+ {[%emt 0:00:10]} 51. Kd3 {[%emt 0:00:14]} a3 {[%emt 0:01:37]} 52. Kc4 {[%emt 0:03:43]} a2 {[%emt 0:01:26]} 53. Kb5 {[%emt 0:00:59]} Rg8 {[%emt 0:02:19]} 54. Ka6 {[%emt 0:01:08]} a1=Q {[%emt 0:00:19]} 55. Rb7+ {[%emt 0:00:27]} Kc8 {[%emt 0:00:02]} 0-1

[Event "28th Hit Open-A 2024"]
[Site "Nova Gorica"]
[Date "2024.02.01"]
[Round "8.16"]
[White "Plaskan, Jure"]
[Black "Zlatanovic, Srdjan"]
[Result "1-0"]
[ECO "C42"]
[WhiteElo "2262"]
[BlackElo "1675"]
[Annotator "ChessBase"]
[PlyCount "69"]
[EventDate "2024.01.22"]
[EventType "swiss"]
[EventCountry "SLO"]
[SourceTitle "playchess.com"]
[Source "ChessBase"]
[SourceQuality "1"]
[TimeControl "5400+30"]

1. e4 {[%emt 0:00:17]} e5 {[%emt 0:00:23]} 2. Nf3 {[%emt 0:00:06]} Nf6 {[%emt 0:00:24]} 3. Nxe5 {[%emt 0:00:06]} Nc6 {[%emt 0:00:18]} 4. Nxc6 {[%emt 0:00:05]} dxc6 {[%emt 0:00:10]} 5. d3 {[%emt 0:00:02]} Bc5 {[%emt 0:00:19]} 6. Be2 {[%emt 0:00:10]} Ng4 {[%emt 0:01:26]} 7. Bxg4 {[%emt 0:04:20]} Qh4 {[%emt 0:00:02]} 8. Qf3 {[%emt 0:04:42]} Bxg4 {[%emt 0:06:06]} 9. Qg3 {[%emt 0:00:06]} Qh5 {[%emt 0:11:30]} 10. f3 {[%emt 0:00:17]} Be6 {[%emt 0:07:49]} 11. Qg5 {[%emt 0:00:18]} Qxg5 {[%emt 0:00:11]} 12. Bxg5 {[%emt 0:00:03]} f6 {[%emt 0:03:06]} 13. Bh4 {[%emt 0:00:10]} O-O-O {[%emt 0:00:45]} 14. Bf2 {[%emt 0:00:16]} Bd6 {[%emt 0:00:11]} 15. d4 {[%emt 0:07:00]} Bc4 {[%emt 0:01:33]} 16. Nd2 {[%emt 0:00:09]} Ba6 {[%emt 0:00:31]} 17. Be3 {[%emt 0:02:17]} g5 {[%emt 0:10:53]} 18. Kf2 {[%emt 0:01:12]} Rhg8 {[%emt 0:03:58]} 19. g4 {[%emt 0:01:55]} h5 {[%emt 0:01:17]} 20. gxh5 {[%emt 0:00:29]} c5 {[%emt 0:00:33]} 21. c3 {[%emt 0:01:31]} cxd4 {[%emt 0:05:25]} 22. cxd4 {[%emt 0:00:25]} c5 {[%emt 0:14:11]} 23. Rac1 {[%emt 0:00:09]} b6 {[%emt 0:00:11]} 24. b4 {[%emt 0:00:58]} Kb8 {[%emt 0:00:43]} 25. bxc5 {[%emt 0:00:37]} bxc5 {[%emt 0:00:01]} 26. dxc5 {[%emt 0:00:10]} Bc7 {[%emt 0:01:26]} 27. Nc4 {[%emt 0:08:34]} f5 {[%emt 0:11:48]} 28. exf5 {[%emt 0:01:58]} Bb7 {[%emt 0:06:10]} 29. Rhg1 {[%emt 0:05:22]} Rd3 {[%emt 0:00:19]} 30. Nd6 {[%emt 0:00:16]} Bc6 {[%emt 0:00:19]} 31. h6 {[%emt 0:00:32]} Rh8 {[%emt 0:08:57]} 32. Rxg5 {[%emt 0:00:18]} Ba5 {[%emt 0:01:30]} 33. Rb1+ {[%emt 0:00:28]} Ka8 {[%emt 0:00:32]} 34. h7 {[%emt 0:00:15]} Bd5 {[%emt 0:00:10]} 35. Rbg1 {[%emt 0:01:31]} 1-0

[Event "28th Hit Open-A 2024"]
[Site "Nova Gorica"]
[Date "2024.02.01"]
[Round "8.17"]
[White "Marchesich, Giovanni"]
[Black "Zupancic, Urban"]
[Result "1-0"]
[ECO "B99"]
[WhiteElo "2210"]
[BlackElo "2025"]
[Annotator "ChessBase"]
[PlyCount "97"]
[EventDate "2024.01.22"]
[EventType "swiss"]
[EventCountry "SLO"]
[SourceTitle "playchess.com"]
[Source "ChessBase"]
[SourceQuality "1"]
[TimeControl "5400+30"]

1. e4 {[%emt 0:00:03]} c5 {[%emt 0:00:11]} 2. Nf3 {[%emt 0:00:07]} d6 {[%emt 0:00:14]} 3. d4 {[%emt 0:00:05]} cxd4 {[%emt 0:00:12]} 4. Nxd4 {[%emt 0:00:06]} Nf6 {[%emt 0:00:25]} 5. Nc3 {[%emt 0:00:06]} a6 {[%emt 0:00:29]} 6. Bg5 {[%emt 0:00:13]} e6 {[%emt 0:02:38]} 7. f4 {[%emt 0:01:00]} Be7 {[%emt 0:01:58]} 8. Qf3 {[%emt 0:00:07]} Qc7 {[%emt 0:04:08]} 9. O-O-O {[%emt 0:00:09]} Nbd7 {[%emt 0:05:23]} 10. g4 {[%emt 0:02:08]} h6 {[%emt 0:29:03]} 11. Bxf6 {[%emt 0:00:10]} Bxf6 {[%emt 0:00:30]} 12. h4 {[%emt 0:00:17]} g5 {[%emt 0:00:45]} 13. hxg5 {[%emt 0:29:26]} hxg5 {[%emt 0:00:19]} 14. Rxh8+ {[%emt 0:00:08]} Bxh8 {[%emt 0:00:12]} 15. f5 {[%emt 0:00:15]} Ne5 {[%emt 0:13:36]} 16. Qh3 {[%emt 0:01:59]} Bf6 {[%emt 0:00:46]} 17. Qh5 {[%emt 0:03:09]} Kd8 {[%emt 0:19:21]} 18. Qh6 {[%emt 0:14:41]} Qe7 {[%emt 0:02:27]} 19. Be2 {[%emt 0:01:31]} Bd7 {[%emt 0:08:58]} 20. Kb1 {[%emt 0:12:11]} b5 {[%emt 0:02:42]} 21. fxe6 {[%emt 0:05:21]} fxe6 {[%emt 0:00:35]} 22. Rf1 {[%emt 0:00:04]} Bg7 {[%emt 0:01:38]} 23. Qh7 {[%emt 0:00:08]} Kc8 {[%emt 0:02:46]} 24. Nf3 {[%emt 0:08:12]} Bf6 {[%emt 0:01:20]} 25. Qxe7 {[%emt 0:01:02]} Bxe7 {[%emt 0:00:06]} 26. Nxe5 {[%emt 0:00:06]} dxe5 {[%emt 0:00:05]} 27. Rf7 {[%emt 0:00:11]} Kd8 {[%emt 0:00:34]} 28. Rg7 {[%emt 0:01:00]} Rc8 {[%emt 0:00:25]} 29. Bd3 {[%emt 0:01:08]} Ke8 {[%emt 0:00:24]} 30. Ne2 {[%emt 0:00:45]} Kf8 {[%emt 0:00:34]} 31. Rh7 {[%emt 0:00:08]} Re8 {[%emt 0:01:13]} 32. Ng1 {[%emt 0:02:28]} Kg8 {[%emt 0:00:13]} 33. Rh3 {[%emt 0:00:18]} Kg7 {[%emt 0:00:51]} 34. Nf3 {[%emt 0:00:16]} Bf6 {[%emt 0:00:27]} 35. c3 {[%emt 0:00:55]} Rd8 {[%emt 0:01:25]} 36. Kc2 {[%emt 0:00:17]} Bc6 {[%emt 0:00:28]} 37. a3 {[%emt 0:03:06]} Kg6 {[%emt 0:00:34]} 38. Nd2 {[%emt 0:01:48]} Be7 {[%emt 0:00:22]} 39. Nf3 {[%emt 0:00:20]} Bf6 {[%emt 0:00:04]} 40. Rh5 {[%emt 0:00:29]} Be8 {[%emt 0:01:21]} 41. Kd2 {[%emt 0:00:50]} Bc6 {[%emt 0:00:32]} 42. Ke2 {[%emt 0:00:10]} Be8 {[%emt 0:00:14]} 43. Rh1 {[%emt 0:00:50]} Bc6 {[%emt 0:00:38]} 44. Bc2 {[%emt 0:02:34]} Bg7 {[%emt 0:00:38]} 45. Rd1 {[%emt 0:00:36]} Rc8 {[%emt 0:00:34]} 46. Rd6 {[%emt 0:00:24]} Kf6 {[%emt 0:00:29]} 47. Bb3 {[%emt 0:00:13]} Bxe4 {[%emt 0:00:27]} 48. Rxe6+ {[%emt 0:00:06]} Kf7 {[%emt 0:00:14]} 49. Rc6+ {[%emt 0:00:11]} 1-0